bitfinex-derivatives/quotes_BTCF0:USTF0_20210406
["timestamp","ask_amount","ask_price","bid_price","bid_amount"]
[1617751654010,0.64669404,58089.0,58088.0,1.16782871]
[1617751655815,1.09515518,58089.0,58088.0,1.16782871]
[1617751659919,0.64669404,58089.0,58088.0,1.16782871]
[1617751660720,0.89168218,58089.0,58088.0,1.16782871]
[1617751661221,0.64669404,58089.0,58088.0,1.16782871]
[1617751661722,0.89167986,58089.0,58088.0,1.16782871]
[1617751662121,0.64669404,58089.0,58088.0,1.16782871]
[1617751663624,1.09513121,58089.0,58088.0,1.16782871]
[1617751665323,0.64669404,58089.0,58088.0,1.16782871]
[1617751666125,0.64669404,58089.0,58088.0,1.60785443]
[1617751666728,0.89167351,58089.0,58088.0,1.60785443]
[1617751667127,0.64669404,58089.0,58088.0,1.60785443]
[1617751669128,0.64669404,58089.0,58088.0,1.16782871]
[1617751670128,0.64669404,58089.0,58088.0,1.60786433]
[1617751670529,0.89167307,58089.0,58088.0,1.60786433]
[1617751670929,0.64669404,58089.0,58088.0,1.60786433]
[1617751671329,0.30568837,58089.0,58088.0,1.60786433]
[1617751673833,0.30568837,58089.0,58088.0,1.80786433]
[1617751674237,0.01028657,58089.0,58088.0,1.80786433]
[1617751675537,0.00519417,58089.0,58088.0,1.80786433]
[1617751676137,0.01028649,58090.0,58088.0,1.80786433]
[1617751676138,0.30574441,58090.0,58088.0,1.80786433]
[1617751676537,0.30574441,58090.0,58089.0,1.16027688]
[1617751676738,0.30574441,58090.0,58089.0,1.43027688]
[1617751677940,0.67263646,58090.0,58089.0,1.43027688]
[1617751679343,0.30574441,58090.0,58089.0,1.43027688]
[1617751679645,0.55071648,58090.0,58089.0,1.43027688]
[1617751680243,0.30574441,58090.0,58089.0,1.43027688]
[1617751680744,0.55071529,58090.0,58089.0,1.43027688]
[1617751681144,0.67262905,58090.0,58089.0,1.43027688]
[1617751683947,0.30574441,58090.0,58089.0,1.43027688]
[1617751684548,0.67262993,58090.0,58089.0,1.43027688]
[1617751685150,0.30574441,58090.0,58089.0,1.43027688]
[1617751689958,0.67255787,58090.0,58089.0,1.43027688]
[1617751690957,0.67255787,58090.0,58089.0,0.99066245]
[1617751698468,0.67255787,58090.0,58089.0,1.10250245]
[1617751701768,0.67255787,58090.0,58089.0,1.54249274]
[1617751711688,0.91750887,58090.0,58089.0,1.54249274]
[1617751712188,0.67255787,58090.0,58089.0,1.54249274]
[1617751712389,0.10725655,58099.0,58089.0,0.38184]
[1617751712589,0.10725655,58099.0,58098.0,0.10725655]
[1617751712990,0.10725655,58099.0,58098.0,0.67750238]
[1617751713390,1.73890281,58099.0,58098.0,0.67750238]
[1617751716591,0.10725655,58099.0,58098.0,0.37725655]
[1617751717096,1.73890377,58099.0,58098.0,0.67751802]
[1617751717694,1.73890377,58099.0,58098.0,0.37725655]
[1617751718496,1.73890377,58099.0,58098.0,0.67750007]
[1617751720099,1.73890377,58099.0,58098.0,0.81154007]
[1617751720299,1.63164722,58099.0,58098.0,0.81154007]
[1617751720498,0.83839966,58099.0,58098.0,0.81154007]
[1617751720699,0.28953043,58100.0,58098.0,2.10888334]
[1617751720901,0.28262666,58100.0,58098.0,3.10888334]
[1617751721099,0.28262666,58100.0,58099.0,1.0]
[1617751721305,0.28262666,58100.0,58099.0,2.5]
[1617751721500,0.08423408,58109.0,58099.0,2.77]
[1617751721699,0.08423408,58109.0,58102.0,1.0]
[1617751721899,0.07393904,58109.0,58102.0,1.0]
[1617751722100,0.07393904,58109.0,58106.0,1.85286014]
[1617751722499,0.07393904,58109.0,58108.0,1.29504494]
[1617751722698,0.07393904,58109.0,58108.0,1.40230149]
[1617751722898,0.07393904,58109.0,58108.0,1.67230149]
[1617751723100,0.07393904,58109.0,58108.0,3.23003793]
[1617751723299,0.07393904,58109.0,58108.0,2.23003793]
[1617751723698,0.07393904,58109.0,58108.0,3.23003793]
[1617751723898,0.04803904,58109.0,58108.0,2.23003793]
[1617751724699,0.04803904,58109.0,58108.0,2.43003793]
[1617751725100,0.6170649,58130.0,58108.0,2.43003793]
[1617751725101,0.36706957,58121.0,58108.0,2.43003793]
[1617751725502,0.04803904,58109.0,58108.0,2.43003793]
[1617751725901,0.04803904,58109.0,58108.0,0.57725655]
[1617751726299,3.904e-05,58109.0,58108.0,0.57725655]
[1617751726500,3.904e-05,58109.0,58108.0,1.9569586]
[1617751726700,3.904e-05,58109.0,58108.0,2.9569586]
[1617751726901,0.10725655,58130.0,58108.0,2.9569586]
[1617751726902,0.10725655,58130.0,58108.0,1.8651386]
[1617751727101,0.10725655,58130.0,58109.0,1.0]
[1617751727301,0.10725655,58130.0,58108.0,2.95694636]
[1617751727501,0.10725655,58130.0,58110.0,0.27]
[1617751727703,0.10725655,58130.0,58110.0,0.42387]
[1617751727901,0.10725655,58130.0,58123.0,0.3563895]
[1617751728101,0.10725655,58130.0,58123.0,0.4941295]
[1617751728301,0.10725655,58130.0,58124.0,0.01]
[1617751728704,0.10725655,58130.0,58129.0,0.10725655]
[1617751729102,0.10725655,58130.0,58129.0,0.37725655]
[1617751736410,1.10725655,58130.0,58129.0,0.37725655]
[1617751761829,0.10725655,58130.0,58129.0,0.37725655]
[1617751762029,0.10725655,58130.0,58129.0,0.49959655]
[1617751763530,1.0,58133.0,58129.0,0.49959655]
[1617751763732,1.0,58132.0,58129.0,0.49959655]
[1617751763937,1.0,58132.0,58129.0,0.79795141]
[1617751764132,1.0,58131.0,58129.0,0.79795141]
[1617751764336,1.0,58131.0,58129.0,0.49959655]
[1617751764743,1.0,58131.0,58129.0,0.37725655]
[1617751764934,1.0,58130.0,58129.0,0.37725655]
[1617751767136,1.10725655,58130.0,58129.0,0.37725655]
[1617751768535,1.10725655,58130.0,58129.0,0.10725655]
[1617751768736,2.60725655,58130.0,58129.0,0.10725655]
[1617751768935,2.60725655,58130.0,58123.0,0.29873521]
[1617751768936,2.80725655,58130.0,58123.0,0.29873521]
[1617751769135,0.10725655,58124.0,58123.0,0.29873521]
[1617751769336,0.10725655,58124.0,58119.0,0.29900877]
[1617751769939,0.41141159,58124.0,58117.0,0.40650079]
[1617751770338,0.30418086,58123.0,58117.0,0.10725655]
[1617751770737,0.30418086,58123.0,58118.0,0.27]
[1617751771337,0.4114424,58124.0,58118.0,0.27]
[1617751772741,0.10725655,58124.0,58118.0,0.5693994]
[1617751773140,1.0,58119.0,58118.0,0.27]
[1617751773742,1.67285032,58119.0,58118.0,1.37381765]
[1617751775545,1.87285032,58119.0,58118.0,1.37381765]
[1617751775746,1.87285032,58119.0,58118.0,0.93229059]
[1617751776446,1.67285032,58119.0,58118.0,0.93229059]
[1617751776648,0.67285032,58119.0,58118.0,0.93229059]
[1617751776848,0.67285032,58119.0,58118.0,1.3736257]
[1617751777049,1.67285032,58119.0,58118.0,1.3736257]
[1617751777852,1.91774272,58119.0,58118.0,0.93229059]
[1617751778248,0.91774272,58119.0,58118.0,0.93229059]
[1617751778749,1.67285032,58119.0,58118.0,0.93229059]
[1617751779149,1.91774251,58119.0,58118.0,0.93229059]
[1617751781050,0.91774251,58119.0,58118.0,0.93229059]
[1617751781251,1.91774251,58119.0,58118.0,0.93229059]
[1617751781550,1.67285032,58119.0,58118.0,0.93229059]
[1617751782151,1.91774295,58119.0,58118.0,0.93229059]
[1617751785857,1.91774295,58119.0,58118.0,0.66229059]
[1617751786055,3.41774295,58119.0,58118.0,0.66229059]
[1617751786257,3.41774295,58119.0,58118.0,0.30104118]
[1617751786455,3.61774295,58119.0,58118.0,0.30104118]
[1617751786757,3.61774295,58119.0,58107.0,0.50151439]
[1617751786758,4.43290633,58119.0,58114.0,0.30126776]
[1617751787359,0.10725655,58115.0,58114.0,0.30126776]
[1617751787561,0.30725655,58115.0,58112.0,0.30137129]
[1617751787960,1.6717126,58115.0,58112.0,0.30137129]
[1617751788366,1.11951835,58113.0,58112.0,0.30137129]
[1617751788960,2.11951835,58113.0,58112.0,0.30137129]
[1617751789262,1.67173136,58113.0,58112.0,0.30137129]
[1617751789863,0.91664235,58113.0,58112.0,0.66284858]
[1617751790663,0.30534169,58113.0,58112.0,0.66284858]
[1617751790865,1.30534169,58113.0,58112.0,0.66284858]
[1617751791265,1.42380169,58113.0,58112.0,0.66284858]
[1617751791665,1.79017232,58113.0,58112.0,0.66284858]
[1617751792064,0.79017232,58113.0,58112.0,0.66284858]
[1617751792464,0.67171232,58113.0,58112.0,0.66284858]
[1617751792666,0.30534169,58113.0,58112.0,0.66284858]
[1617751793067,0.30534169,58113.0,58112.0,1.10421242]
[1617751793767,0.30534169,58113.0,58112.0,0.66284858]
[1617751793966,1.30534169,58113.0,58112.0,0.66284858]
[1617751794169,1.30534169,58113.0,58112.0,0.72407545]
[1617751794771,1.91661462,58113.0,58112.0,0.66284858]
[1617751795171,1.91661462,58113.0,58112.0,0.72407571]
[1617751795569,1.91661462,58113.0,58112.0,0.66284858]
[1617751796171,0.91661462,58113.0,58112.0,0.66284858]
[1617751796369,0.91661462,58113.0,58112.0,0.77351858]
[1617751796571,0.30534169,58113.0,58112.0,1.21495711]
[1617751796969,0.30534169,58113.0,58112.0,1.27618078]
[1617751797570,0.305247,58114.0,58112.0,1.27618078]
[1617751798370,0.305247,58114.0,58113.0,1.16413397]
[1617751800071,0.41244128,58115.0,58113.0,1.16413397]
[1617751800470,0.41244128,58115.0,58114.0,0.66174816]
[1617751800671,0.41244128,58115.0,58114.0,1.1029136]
[1617751802274,0.41244128,58115.0,58114.0,0.66174816]
[1617751803075,0.41244128,58115.0,58114.0,0.93174816]
[1617751803276,0.10725655,58115.0,58114.0,1.37276837]
[1617751803875,0.10725655,58115.0,58114.0,1.43398631]
[1617751809982,0.30512504,58120.0,58114.0,1.43398631]
[1617751810584,0.30512504,58120.0,58119.0,0.66125567]
[1617751811587,0.30512504,58120.0,58119.0,0.76851222]
[1617751811889,0.30512504,58120.0,58119.0,0.82972874]
[1617751813188,0.30504534,58121.0,58119.0,0.82972874]
[1617751813789,0.30504534,58121.0,58120.0,0.72217088]
[1617751814191,0.36621509,58123.0,58120.0,0.72217088]
[1617751814590,0.36621509,58123.0,58122.0,0.66141262]
[1617751815092,0.91627516,58123.0,58122.0,0.66141262]
[1617751815492,0.67140974,58123.0,58122.0,0.66141262]
[1617751815894,0.916284,58123.0,58122.0,0.3006421]
[1617751816293,1.916284,58123.0,58122.0,0.3006421]
[1617751816496,1.67140974,58123.0,58122.0,0.36186025]
[1617751816895,1.91628186,58123.0,58122.0,0.3006421]
[1617751817296,1.91628186,58123.0,58122.0,0.66149852]
[1617751817896,1.91628186,58123.0,58122.0,0.3006421]
[1617751818297,2.36387009,58123.0,58122.0,0.3006421]
[1617751818696,1.91628186,58123.0,58122.0,0.3006421]
[1617751819298,0.91628186,58123.0,58122.0,0.3006421]
[1617751819901,0.91628186,58123.0,58122.0,0.66147883]
[1617751824308,0.91628186,58123.0,58122.0,1.10161013]
[1617751824706,0.91628186,58123.0,58122.0,0.66147883]
[1617751824707,1.36464065,58123.0,58122.0,0.66147883]
[1617751829214,2.059446,58123.0,58122.0,0.66147883]
[1617751829416,2.169416,58123.0,58122.0,0.66147883]
[1617751829616,2.47515757,58123.0,58122.0,0.66147883]
[1617751831815,1.47515757,58123.0,58122.0,0.66147883]
[1617751832018,1.36518757,58123.0,58122.0,0.66147883]
[1617751832616,1.36518757,58123.0,58122.0,0.75865883]
[1617751833220,1.36518757,58123.0,58122.0,0.81988]
[1617751833819,1.36518757,58123.0,58122.0,1.08988]
[1617751834019,0.91682878,58123.0,58122.0,1.08988]
[1617751836722,0.67195666,58123.0,58122.0,1.08988]
[1617751837121,0.91683779,58123.0,58122.0,1.08988]
[1617751837519,0.55556385,58124.0,58122.0,0.36718]
[1617751837520,0.10725655,58124.0,58122.0,0.36718]
[1617751837922,0.36681242,58123.0,58122.0,0.80601485]
[1617751838121,0.67250641,58123.0,58122.0,0.80601485]
[1617751838320,0.67250641,58123.0,58122.0,1.46423232]
[1617751838820,0.91738429,58123.0,58122.0,1.46423232]
[1617751840821,0.67250641,58123.0,58122.0,1.46423232]
[1617751846424,0.9173885,58123.0,58122.0,1.46423232]
[1617751848627,0.9173885,58123.0,58122.0,1.02539747]
[1617751852733,0.9173885,58123.0,58122.0,1.46422688]
[1617751852931,0.9173885,58123.0,58122.0,0.80600941]
[1617751853331,0.9173885,58123.0,58122.0,1.46418081]
[1617751853533,0.10725655,58124.0,58122.0,0.36718]
[1617751853933,0.10725655,58124.0,58123.0,0.91314029]
[1617751854835,0.41299821,58124.0,58123.0,0.91314029]
[1617751855034,0.30574166,58124.0,58123.0,0.91314029]
[1617751855435,0.30574166,58124.0,58123.0,1.18314029]
[1617751857438,0.30574166,58124.0,58123.0,0.74442078]
[1617751857739,0.41299821,58124.0,58123.0,0.74442078]
[1617751857939,0.86187537,58124.0,58123.0,1.18367996]
[1617751859441,0.41299821,58124.0,58123.0,1.18367996]
[1617751860844,0.86187596,58124.0,58123.0,1.18367996]
[1617751861546,0.75461941,58124.0,58123.0,1.18367996]
[1617751861744,0.30574166,58124.0,58123.0,1.18367996]
[1617751862345,0.7546168,58124.0,58123.0,1.18367996]
[1617751862746,0.30574166,58124.0,58123.0,1.18367996]
[1617751869052,0.44887228,58125.0,58123.0,1.18367996]
[1617751869252,0.30602105,58124.0,58123.0,1.18367996]
[1617751869653,0.30602105,58124.0,58123.0,0.27]
[1617751869953,0.30602105,58124.0,58121.0,0.01]
[1617751870153,0.30602105,58124.0,58123.0,0.73676834]
[1617751870554,0.44887228,58125.0,58123.0,1.00676834]
[1617751870955,0.44887228,58125.0,58124.0,0.43813243]
[1617751871254,0.44887228,58125.0,58124.0,0.70813243]
[1617751872857,1.44887228,58125.0,58124.0,0.43813243]
[1617751873258,1.44887228,58125.0,58122.0,0.43835207]
[1617751873455,1.57106228,58125.0,58122.0,0.43835207]
[1617751873657,0.44879992,58123.0,58122.0,0.43835207]
[1617751873857,0.55605647,58123.0,58122.0,0.43835207]
[1617751874657,0.80093516,58123.0,58122.0,0.43835207]
[1617751878263,0.35213524,58123.0,58122.0,0.43835207]
[1617751879163,0.7193257,58123.0,58122.0,0.7964179]
[1617751881070,1.16809762,58123.0,58122.0,0.7964179]
[1617751882767,0.7193257,58123.0,58122.0,0.7964179]
[1617751884671,0.7193257,58123.0,58122.0,0.35806583]
[1617751884872,0.7193257,58123.0,58122.0,0.79565441]
[1617751892085,1.16810054,58123.0,58122.0,0.79565441]
[1617751895392,0.7193257,58123.0,58122.0,0.79565441]
[1617751897489,0.7193257,58123.0,58122.0,1.06565441]
[1617751898491,0.7193257,58123.0,58122.0,1.12686555]
[1617751900694,1.02534422,58123.0,58122.0,1.42507398]
[1617751906700,0.91808767,58123.0,58122.0,1.42507398]
[1617751907301,0.67320898,58123.0,58122.0,1.42507398]
[1617751910405,0.67320898,58123.0,58122.0,1.58224398]
[1617751916311,0.67320898,58123.0,58122.0,3.08224398]
[1617751916513,0.67320898,58123.0,58122.0,4.08224398]
[1617751916714,0.30601852,58123.0,58122.0,4.57875506]
[1617751917116,0.00519906,58124.0,58122.0,4.67055656]
[1617751917513,0.00519895,58125.0,58124.0,1.0]
[1617751917912,0.00519895,58125.0,58124.0,0.27]
[1617751918113,0.00519895,58125.0,58124.0,1.91748242]
[1617751918515,0.01029525,58125.0,58124.0,1.91748242]
[1617751922017,0.01029525,58125.0,58124.0,4.41748242]
[1617751922616,0.00519848,58127.0,58125.0,1.0]
[1617751922816,0.00519848,58127.0,58126.0,0.27]
[1617751923018,0.00518702,58132.0,58126.0,1.91319258]
[1617751923216,0.00518702,58132.0,58126.0,1.64319258]
[1617751923418,0.005187,58131.0,58128.0,1.0]
[1617751923819,0.005187,58131.0,58130.0,1.08743037]
[1617751924221,0.005187,58131.0,58130.0,1.52588425]
[1617751924620,0.00518698,58132.0,58130.0,1.52588425]
[1617751925220,0.00518698,58132.0,58131.0,1.14928788]
[1617751925619,0.01027228,58133.0,58131.0,1.41928788]
[1617751925620,0.0051854,58133.0,58131.0,1.41928788]
[1617751926020,0.01026913,58133.0,58132.0,1.14901637]
[1617751926420,0.01026913,58133.0,58132.0,1.41901637]
[1617751927222,0.01026913,58133.0,58132.0,0.98388866]
[1617751928526,0.01026913,58133.0,58132.0,1.41891212]
[1617751929327,0.00518533,58133.0,58132.0,1.41891212]
[1617751930728,0.01026899,58134.0,58132.0,1.41891212]
[1617751931128,0.01026899,58134.0,58133.0,0.71348962]
[1617751931529,0.01026899,58134.0,58133.0,0.98348962]
[1617751931929,0.30512385,58135.0,58133.0,0.98348962]
[1617751932529,0.30512437,58134.0,58133.0,0.98348962]
[1617751933130,0.10725655,58140.0,58133.0,0.98348962]
[1617751933131,0.3050377,58135.0,58133.0,0.98348962]
[1617751933531,0.30503703,58134.0,58133.0,0.98348962]
[1617751933931,0.01026616,58134.0,58133.0,0.98348962]
[1617751936134,0.01026612,58135.0,58133.0,0.98348962]
[1617751936533,0.01026612,58135.0,58134.0,0.71312468]
[1617751936934,0.30502545,58135.0,58134.0,0.84292468]
[1617751937133,0.30502545,58135.0,58134.0,1.11292468]
[1617751938437,0.30502262,58136.0,58134.0,1.11292468]
[1617751938936,0.30502262,58136.0,58135.0,0.71306785]
[1617751939336,0.01026562,58136.0,58135.0,0.71306785]
[1617751941339,0.30502119,58137.0,58135.0,0.71306785]
[1617751942239,0.30502119,58137.0,58136.0,0.10725655]
[1617751942440,0.30502119,58137.0,58136.0,0.75846044]
[1617751943040,0.30502119,58137.0,58136.0,0.81965681]
[1617751944939,0.30502119,58137.0,58136.0,0.96548681]
[1617751958155,0.30505633,58138.0,58136.0,0.96548681]
[1617751958557,0.30505633,58138.0,58137.0,0.71326136]
[1617751960557,0.30505633,58138.0,58137.0,0.98326136]
[1617751960959,0.30505633,58138.0,58137.0,1.41951806]
[1617751962463,0.30505633,58138.0,58137.0,0.98326136]
[1617751962864,0.30505633,58138.0,58137.0,1.41950225]
[1617751966368,0.01027355,58138.0,58137.0,1.41950225]
[1617751967067,0.01027355,58138.0,58137.0,0.98326136]
[1617751967068,0.30522651,58138.0,58137.0,0.98326136]
[1617751968368,0.30522651,58138.0,58137.0,1.41953657]
[1617751969070,0.30522728,58139.0,58137.0,1.41953657]
[1617751969570,0.10725655,58140.0,58138.0,0.71563679]
[1617751969970,0.10725655,58140.0,58139.0,0.27]
[1617751970571,0.77873937,58140.0,58139.0,0.98636729]
[1617751970771,0.77873937,58140.0,58139.0,0.71636729]
[1617751971174,0.77873937,58140.0,58139.0,0.97636729]
[1617751971575,1.02353383,58140.0,58139.0,1.41367419]
[1617751971976,1.47192001,58140.0,58139.0,0.97636729]
[1617751976879,1.47192001,58140.0,58139.0,1.4137405]
[1617751976880,1.02353383,58140.0,58139.0,1.4137405]
[1617751978279,1.47193603,58140.0,58139.0,0.97636729]
[1617751982885,1.02353383,58140.0,58139.0,1.41437064]
[1617751983686,1.47189961,58140.0,58139.0,0.97636729]
[1617751984587,1.1666709,58140.0,58139.0,0.97636729]
[1617751984785,1.1666709,58140.0,58139.0,1.13230729]
[1617751985187,0.91678621,58140.0,58139.0,1.57092906]
[1617751985888,0.67199175,58140.0,58139.0,1.57092906]
[1617751989092,0.67199175,58140.0,58139.0,1.41498906]
[1617751995197,1.12049433,58140.0,58139.0,1.41498906]
[1617751995599,0.67199175,58140.0,58139.0,1.41498906]
[1617751998701,1.12053216,58140.0,58139.0,1.41498906]
[1617752000004,0.67199175,58140.0,58139.0,1.41498906]
[1617752000605,1.12053171,58140.0,58139.0,1.41498906]
[1617752001007,0.67199175,58140.0,58139.0,1.41498906]
[1617752007619,1.12060518,58140.0,58139.0,1.41498906]
[1617752008719,1.22786173,58140.0,58139.0,1.41498906]
[1617752009319,1.47265687,58140.0,58139.0,1.41498906]
[1617752009721,1.22786173,58140.0,58139.0,1.41498906]
[1617752010121,1.47265705,58140.0,58139.0,1.41498906]
[1617752012524,1.47265705,58140.0,58139.0,1.46668906]
[1617752012925,1.47265705,58140.0,58139.0,1.41498906]
[1617752024044,0.10725655,58140.0,58139.0,0.26]
[1617752024347,1.22893684,58140.0,58139.0,1.10426638]
[1617752024844,1.22893684,58140.0,58139.0,1.37426638]
[1617752025243,1.47373128,58140.0,58139.0,1.37426638]
[1617752025643,1.47373128,58140.0,58139.0,1.4354649]
[1617752032359,1.02507955,58140.0,58139.0,1.4354649]
[1617752037364,1.02507955,58140.0,58139.0,1.4862649]
[1617752037562,1.02507955,58140.0,58139.0,1.4354649]
[1617752039165,1.02507955,58140.0,58139.0,1.93793646]
[1617752044369,1.02507955,58140.0,58139.0,1.4354649]
[1617752044769,1.02507955,58140.0,58139.0,1.93806665]
[1617752045272,1.02507955,58140.0,58139.0,1.4354649]
[1617752046975,1.02507955,58140.0,58139.0,1.93796251]
[1617752048678,1.02507955,58140.0,58139.0,1.4354649]
[1617752052083,1.17634955,58140.0,58139.0,1.4354649]
[1617752052285,1.62496475,58140.0,58139.0,1.4354649]
[1617752052684,2.82496475,58140.0,58139.0,1.4354649]
[1617752053788,2.82496475,58140.0,58139.0,0.99375835]
[1617752055090,2.62496475,58140.0,58139.0,0.99375835]
[1617752055490,3.13478559,58140.0,58139.0,0.99375835]
[1617752056991,2.13478559,58140.0,58139.0,0.99375835]
[1617752057192,3.13478559,58140.0,58139.0,0.99375835]
[1617752059195,2.62496475,58140.0,58139.0,0.99375835]
[1617752059495,3.13475504,58140.0,58139.0,0.99375835]
[1617752059695,2.13475504,58140.0,58139.0,0.99375835]
[1617752060096,2.62496475,58140.0,58139.0,0.99375835]
[1617752060696,1.62496475,58140.0,58139.0,0.99375835]
[1617752060899,2.62496475,58140.0,58139.0,0.99375835]
[1617752061300,3.13476669,58140.0,58139.0,0.99375835]
[1617752062602,2.62496475,58140.0,58139.0,0.99375835]
[1617752065303,2.62496475,58140.0,58139.0,0.63236208]
[1617752066605,3.13427595,58140.0,58139.0,0.57116356]
[1617752067506,3.13427595,58140.0,58139.0,0.30116356]
[1617752070811,3.13427595,58140.0,58138.0,0.30201536]
[1617752071411,1.87436347,58139.0,58138.0,0.30201536]
[1617752071715,2.87436347,58139.0,58138.0,0.30201536]
[1617752071914,3.24159854,58139.0,58137.0,0.30205893]
[1617752072316,1.87437433,58138.0,58136.0,0.30211746]
[1617752072716,2.24161336,58138.0,58136.0,0.30211746]
[1617752073117,1.62956604,58137.0,58136.0,0.30211746]
[1617752073518,1.12035211,58137.0,58133.0,0.30184889]
[1617752073717,2.12035211,58137.0,58133.0,0.30184889]
[1617752073916,2.11911783,58134.0,58133.0,0.30184889]
[1617752074417,2.36394802,58134.0,58133.0,0.57184889]
[1617752075017,2.47120457,58134.0,58133.0,0.57184889]
[1617752075218,1.10725655,58134.0,58133.0,0.27]
[1617752075418,1.10725655,58134.0,58125.0,0.27]
[1617752075619,2.22638033,58134.0,58133.0,0.30194682]
[1617752075819,2.22638033,58134.0,58133.0,0.57194682]
[1617752076018,2.22638033,58134.0,58133.0,0.30194682]
[1617752076419,2.22638033,58134.0,58133.0,0.57194682]
[1617752076619,2.22638033,58134.0,58133.0,0.27]
[1617752076920,2.22638033,58134.0,58132.0,0.30191573]
[1617752077322,1.22638033,58134.0,58133.0,0.27]
[1617752077520,0.10725655,58134.0,58133.0,0.27]
[1617752077720,0.10725655,58134.0,58131.0,0.30199913]
[1617752078120,1.2263832,58134.0,58132.0,0.27]
[1617752078319,1.2263832,58134.0,58131.0,0.27]
[1617752078721,0.10725655,58134.0,58133.0,0.27]
[1617752078921,0.10725655,58134.0,58131.0,0.57203453]
[1617752079122,1.47122483,58134.0,58131.0,0.57203453]
[1617752079322,1.47122483,58134.0,58133.0,0.01]
[1617752079524,1.47122483,58134.0,58131.0,0.30203453]
[1617752079723,2.36397199,58133.0,58131.0,0.30203453]
[1617752079923,2.36397199,58133.0,58132.0,0.27]
[1617752080123,1.0,58133.0,58132.0,0.27]
[1617752080322,0.10725655,58134.0,58132.0,0.27]
[1617752080524,1.0,58133.0,58131.0,0.01]
[1617752080725,2.11915385,58133.0,58131.0,0.01]
[1617752080925,2.11915385,58133.0,58129.0,0.30211387]
[1617752081126,1.36358749,58132.0,58130.0,0.26]
[1617752081324,2.36358749,58132.0,58130.0,0.26]
[1617752081525,2.36358749,58132.0,58129.0,0.31199762]
[1617752081526,0.44747551,58130.0,58129.0,0.31199762]
[1617752081725,0.44747551,58130.0,58129.0,0.30199762]
[1617752081927,0.67126097,58130.0,58129.0,0.31199762]
[1617752082526,1.11873626,58130.0,58129.0,0.31199762]
[1617752082829,2.11873626,58130.0,58129.0,0.31199762]
[1617752083228,1.11873626,58130.0,58129.0,0.31199762]
[1617752083432,2.11873626,58130.0,58129.0,0.31199762]
[1617752083629,1.36357579,58130.0,58129.0,0.31199762]
[1617752083830,2.36357579,58130.0,58129.0,0.31199762]
[1617752084030,1.9161005,58130.0,58129.0,0.31199762]
[1617752085029,1.9161005,58130.0,58129.0,0.01]
[1617752085429,1.9161005,58130.0,58128.0,0.30182235]
[1617752085629,1.9161005,58130.0,58129.0,0.27]
[1617752085830,1.0,58130.0,58129.0,0.27]
[1617752086333,1.67095517,58130.0,58129.0,0.27]
[1617752088134,1.67095517,58130.0,58129.0,0.5717997]
[1617752088533,1.67095517,58130.0,58129.0,0.3017997]
[1617752088734,1.67095517,58130.0,58129.0,0.5717997]
[1617752088935,1.67095517,58130.0,58129.0,0.27]
[1617752089535,1.67095517,58130.0,58128.0,0.30186906]
[1617752089737,1.67095517,58130.0,58129.0,0.27]
[1617752089935,1.11823169,58130.0,58129.0,0.27]
[1617752090337,2.11823169,58130.0,58127.0,0.30188972]
[1617752090737,0.67098434,58128.0,58127.0,0.30188972]
[1617752090938,0.79284434,58128.0,58127.0,0.30188972]
[1617752091139,1.34739301,58128.0,58127.0,0.27]
[1617752091539,1.34739301,58128.0,58126.0,0.01]
[1617752091739,1.59224574,58128.0,58126.0,0.01]
[1617752091940,1.59224574,58128.0,58127.0,0.27]
[1617752092140,0.67640867,58128.0,58126.0,0.27]
[1617752092341,1.67640867,58128.0,58126.0,0.27]
[1617752092539,1.67640867,58128.0,58127.0,0.27]
[1617752092741,2.34744886,58128.0,58126.0,0.27]
[1617752093040,2.34744886,58128.0,58127.0,0.27]
[1617752093340,2.34744886,58128.0,58126.0,0.27]
[1617752093741,0.24485326,58127.0,58126.0,0.30200809]
[1617752093940,0.24485326,58127.0,58126.0,0.57200809]
[1617752094141,0.91589139,58127.0,58126.0,0.57200809]
[1617752094541,0.91589139,58127.0,58126.0,0.27]
[1617752094740,1.91589139,58127.0,58126.0,0.27]
[1617752094943,1.91589139,58127.0,58125.0,0.57203937]
[1617752095141,1.0,58127.0,58126.0,0.27]
[1617752096044,1.67082148,58127.0,58126.0,0.27]
[1617752096443,1.0,58127.0,58124.0,0.30198732]
[1617752096644,1.0,58127.0,58126.0,0.01]
[1617752097045,1.0,58127.0,58124.0,0.30198732]
[1617752097246,1.67083809,58127.0,58126.0,0.27]
[1617752097645,1.67083809,58127.0,58125.0,0.27]
[1617752097848,1.67083809,58127.0,58124.0,0.30198732]
[1617752098049,1.0,58127.0,58126.0,0.27]
[1617752098249,1.0,58127.0,58125.0,0.27]
[1617752098448,1.0,58127.0,58124.0,0.30198732]
[1617752098649,2.11803181,58127.0,58126.0,0.27]
[1617752098849,1.11803181,58127.0,58126.0,0.27]
[1617752099048,0.24487052,58126.0,58124.0,0.01]
[1617752099248,0.24487052,58126.0,58123.0,0.30205069]
[1617752099450,0.67084119,58126.0,58125.0,0.27]
[1617752099649,0.67084119,58126.0,58124.0,0.30199811]
[1617752099849,1.67084119,58126.0,58124.0,0.30199811]
[1617752100051,1.67084119,58126.0,58125.0,0.27]
[1617752100250,1.0,58126.0,58125.0,0.27]
[1617752100649,1.67084275,58126.0,58125.0,0.27]
[1617752100849,1.0,58126.0,58125.0,0.27]
[1617752101251,1.67084347,58126.0,58125.0,0.27]
[1617752103954,0.67084347,58126.0,58125.0,0.27]
[1617752104157,1.67084347,58126.0,58125.0,0.27]
[1617752104955,1.67084347,58126.0,58125.0,0.57201062]
[1617752105355,1.67084347,58126.0,58125.0,0.30201062]
[1617752105754,1.67084347,58126.0,58125.0,0.56201062]
[1617752107257,1.67087656,58126.0,58125.0,0.56201062]
[1617752107759,1.67087656,58126.0,58125.0,0.26]
[1617752108160,1.67087656,58126.0,58124.0,0.57211007]
[1617752108458,1.67087656,58126.0,58125.0,0.27]
[1617752108659,0.55447564,58128.0,58125.0,0.27]
[1617752108858,1.0,58126.0,58125.0,0.27]
[1617752109058,1.67088031,58126.0,58125.0,0.27]
[1617752109461,1.91575287,58126.0,58125.0,0.27]
[1617752110659,1.0,58126.0,58125.0,0.27]
[1617752110862,1.67088253,58126.0,58125.0,0.27]
[1617752111761,1.44787352,58126.0,58125.0,0.57243384]
[1617752112162,2.48705563,58126.0,58125.0,0.30243384]
[1617752112362,2.48705563,58126.0,58125.0,0.56243384]
[1617752112563,2.11973457,58126.0,58125.0,0.56243384]
[1617752112963,2.36461523,58126.0,58125.0,0.56243384]
[1617752113163,1.44787352,58126.0,58125.0,0.56243384]
[1617752113366,2.48705661,58126.0,58125.0,0.56243384]
[1617752113764,2.1197352,58126.0,58125.0,0.56243384]
[1617752113964,1.44787352,58126.0,58125.0,0.56243384]
[1617752114170,2.1196268,58126.0,58125.0,0.56243384]
[1617752115266,1.44787352,58126.0,58125.0,0.56243384]